fUSD/lending_fUSD_20240425
["ID","MTS","AMOUNT","RATE_DAILY","PERIOD"]
[323555906,1714084272287,-500.0,0.0001178,2]
[323555907,1714084272296,-1291.85,0.0001178,2]
[323555908,1714084272305,-500.0,0.0001178,2]
[323555909,1714084272314,-505.16,0.0001178,2]
[323555910,1714084272324,-150.0,0.00011781,2]
[323555911,1714084272333,-150.0,0.00011785,2]
[323555912,1714084272344,-150.0,0.00011785,2]
[323555913,1714084272353,-150.0,0.00011786,2]
[323555914,1714084272362,-150.0,0.00011787,2]
[323555915,1714084272372,-150.0,0.00011788,2]
[323555916,1714084272381,-150.0,0.00011788,2]
[323555917,1714084272391,-137354.03977789,0.0001179,2]
[323555918,1714084272400,-150.0,0.0001179,2]
[323555919,1714084272409,-150.0,0.00011791,2]
[323555920,1714084272418,-150.0,0.00011791,2]
[323555921,1714084272428,-150.0,0.00011795,2]
[323555922,1714084272437,-150.0,0.00011795,2]
[323555923,1714084272447,-150.0,0.00011796,2]
[323555924,1714084272456,-500.0,0.000118,2]
[323555925,1714084272466,-150.0,0.000118,2]
[323555926,1714084272476,-150.0,0.000118,2]
[323555927,1714084272486,-150.0,0.000118,2]
[323555928,1714084272497,-400.0,0.000118,4]
[323555929,1714084272507,-150.0,0.00011802,2]
[323555930,1714084272517,-150.0,0.00011802,2]
[323555931,1714084272527,-150.0,0.00011804,2]
[323555932,1714084272538,-618.49937724,0.00011805,2]
[323555933,1714084272548,-597.1718873,0.00011805,2]
[323555934,1714084272559,-150.0,0.00011805,2]
[323555935,1714084272569,-150.0,0.00011807,2]
[323555936,1714084272578,-150.0,0.00011811,2]
[323555937,1714084272589,-150.0,0.00011814,2]
[323555938,1714084272599,-150.0,0.00011819,2]
[323555939,1714084272609,-150.0,0.00011821,2]
[323555940,1714084272623,-150.0,0.00011827,2]
[323555941,1714084272633,-150.0,0.00011829,2]
[323555942,1714084272643,-150.0,0.00011835,2]
[323555943,1714084272653,-150.0,0.00011841,2]
[323555944,1714084272664,-150.0,0.00011843,2]
[323555945,1714084272674,-150.0,0.00011844,2]
[323555946,1714084272684,-150.0,0.00011857,2]
[323555947,1714084272695,-150.0,0.0001186,2]
[323555948,1714084272705,-150.0,0.00011863,2]
[323555949,1714084272715,-150.0,0.00011865,2]
[323555950,1714084272725,-183.97237666,0.00011866,2]
[323555951,1714084272735,-653.0,0.00011869,2]
[323555952,1714084272745,-150.0,0.00011869,2]
[323555953,1714084272754,-150.0,0.00011869,2]
[323555954,1714084272764,-150.0,0.00011869,2]
[323555955,1714084272774,-150.0,0.00011869,2]
[323555956,1714084272784,-150.0,0.0001187,2]
[323555957,1714084272794,-150.0,0.00011876,2]
[323555958,1714084272804,-172.68675682,0.0001188,2]
[323555959,1714084272814,-150.0,0.00011883,2]
[323555960,1714084272824,-150.0,0.00011885,2]
[323555961,1714084272834,-150.0,0.00011892,2]
[323555962,1714084272844,-150.0,0.00011893,2]
[323555963,1714084272854,-150.0,0.00011895,2]
[323555964,1714084272864,-1474.0,0.00011899,2]
[323555965,1714084272874,-402.0,0.00011899,2]
[323555966,1714084272883,-214.0,0.00011899,2]
[323555967,1714084272893,-989.184,0.00011899,2]
[323555968,1714084272903,-443.0,0.00011899,2]
[323555969,1714084272912,-1139.0,0.00011899,2]
[323555970,1714084272921,-970.0,0.00011899,2]
[323555971,1714084272932,-1394.0,0.00011899,2]
[323555972,1714084272941,-462.0,0.00011899,2]
[323555973,1714084272950,-2296.0,0.00011899,2]
[323555974,1714084272960,-1056.0,0.00011899,2]
[323555975,1714084272970,-1227.0,0.00011899,2]
[323555976,1714084272979,-542.0,0.00011899,2]
[323555977,1714084272989,-480.987,0.00011899,2]
[323555978,1714084272998,-400.0,0.000119,4]
[323555979,1714084273007,-150.0,0.00011901,2]
[323555980,1714084273017,-1000.0,0.00011903,2]
[323555981,1714084273027,-500.0,0.00011903,2]
[323555982,1714084273036,-150.0,0.00011903,2]
[323555983,1714084273046,-150.0,0.00011903,2]
[323555984,1714084273056,-1000.0,0.00011904,2]
[323555985,1714084273065,-1000.0,0.00011904,2]
[323555986,1714084273075,-500.0,0.00011904,2]
[323555987,1714084273085,-500.0,0.00011904,2]
[323555988,1714084273095,-3675.36120902,0.00011905,2]
[323555989,1714084273104,-156.22471055,0.00011905,2]
[323555990,1714084273114,-373.08888699,0.00011905,2]
[323555991,1714084273124,-150.0,0.00011905,2]
[323555992,1714084273134,-150.0,0.00011905,2]
[323555993,1714084273144,-3000.0,0.00011907,2]
[323555994,1714084273154,-150.0,0.00011913,2]
[323555995,1714084273164,-150.0,0.00011918,2]
[323555996,1714084273173,-456.1,0.0001192,2]
[323555997,1714084273183,-150.0,0.00011921,2]
[323555998,1714084273193,-6317.8963842,0.00011926,2]
[323555999,1714084273204,-652.5349,0.0001194,2]
[323556000,1714084273214,-300.01598709,0.00011975,2]
[323556001,1714084273223,-6495.9535099,0.00011984,2]
[323556002,1714084273233,-5059.0445654,0.00011984,2]
[323556003,1714084273243,-3622.1356209,0.00011984,2]
[323556004,1714084273254,-2185.2266765,0.00011984,2]
[323556005,1714084273263,-748.317732,0.00011984,2]
[323556006,1714084273273,-15394.1217982,0.00011984,2]
[323556007,1714084273282,-11988.9325107,0.00011984,2]
[323556008,1714084273292,-8583.7432232,0.00011984,2]
[323556009,1714084273302,-5178.5539357,0.00011984,2]
[323556010,1714084273312,-1773.3646482,0.00011984,2]
[323556011,1714084273321,-10134.5335684,0.00011984,2]
[323556012,1714084273331,-7892.7684588,0.00011984,2]
[323556013,1714084273340,-5651.0033491,0.00011984,2]
[323556014,1714084273350,-3409.2382395,0.00011984,2]
[323556015,1714084273359,-1167.4731298,0.00011984,2]
[323556016,1714084273369,-413.371035,0.00011984,2]
[323556017,1714084273378,-413.371035,0.00011984,2]
[323556018,1714084273388,-7932.8624543,0.0001199,2]
[323556019,1714084273398,-18799.3110856,0.0001199,2]
[323556020,1714084273407,-12376.2986781,0.0001199,2]
[323556021,1714084273419,-963.22955266,0.00011998,2]
[323556022,1714084273428,-2814.13331328,0.00011999,2]
[323556023,1714084273439,-185.47764417,0.00011999,2]
[323556024,1714084273449,-5444.53698867,0.00011999,2]
[323556025,1714084273458,-1636789.29018739,0.00012,2]
[323556026,1714084274053,-1211934.21287175,0.00012,2]
[323556027,1714084274092,-500.0,0.00011506,2]
[323556028,1714084274101,-162855.42856936,0.00012,2]
[323556029,1714084274138,-2009.55480909,0.00012,2]
[323556030,1714084274150,-392.8545,0.00012,2]
[323556031,1714084274182,-5377.16,0.00011232,2]
[323556032,1714084274191,-500.0,0.00011506,2]
[323556033,1714084274201,-1794233.3468984,0.00012,2]
[323556034,1714084274210,-2000.00000092,0.00012,2]
[323556035,1714084274219,-315.64844142,0.00012,2]
[323556036,1714084274256,-500.0,0.00011506,2]
[323556037,1714084274266,-126.48359849,0.0001178,2]
[323556038,1714084274277,-311.75649,0.0001178,2]
[323556039,1714084274296,-305.22762865,0.0001178,2]
[323556040,1714084275906,-500.0,0.00010958,2]
[323556041,1714084275915,-500.0,0.00010958,2]
[323556042,1714084275925,-500.0,0.00010958,2]
[323556043,1714084275937,-500.0,0.00010958,2]
[323556044,1714084275946,-500.0,0.00011232,2]
[323556045,1714084275957,-500.0,0.00011232,2]
[323556046,1714084275966,-500.0,0.00011232,2]
[323556047,1714084275975,-66.05448998,0.00011232,2]
[323556048,1714084275998,-433.94551002,0.00011232,2]
[323556049,1714084276007,-2679.99718998,0.00011506,2]
[323556050,1714084276018,-2697.16281002,0.00011506,2]
[323556051,1714084276027,-500.0,0.00011506,2]
[323556052,1714084276037,-500.0,0.00011506,2]
[323556053,1714084276046,-500.0,0.00011506,2]
[323556054,1714084276056,-69.42228286,0.0001178,2]
[323556055,1714084276066,-500.0,0.0001178,2]
[323556056,1714084276075,-500.0,0.0001178,2]
[323556057,1714084276085,-1443.37858713,0.0001178,2]
[323556058,1714084276096,-1121.2213578,0.0001178,2]
[323556059,1714084276108,-549.80271798,0.0001178,2]
[323556060,1714084276147,-305.22509955,0.0001178,2]
[323556061,1714084276302,-1993.51272032,0.00010756,2]
[323556062,1714084276313,-243006.48727968,0.00010756,2]
[323556063,1714084276322,-500.0,0.00010958,2]
[323556064,1714084276332,-500.0,0.00010958,2]
[323556065,1714084276342,-500.0,0.00010958,2]
[323556066,1714084276351,-481.72316902,0.00011232,2]
[323556067,1714084276362,-500.0,0.00011232,2]
[323556068,1714084276371,-500.0,0.00011232,2]
[323556069,1714084276381,-1957.53223754,0.0001178,2]
[323556070,1714084276390,-500.0,0.0001178,2]
[323556071,1714084276399,-500.0,0.0001178,2]
[323556072,1714084276408,-500.0,0.0001178,2]
[323556073,1714084276418,-500.0,0.0001178,2]
[323556074,1714084276427,-909.0,0.00011899,2]
[323556075,1714084276437,-93.47963886,0.00012,2]
[323556076,1714084276446,-3070.60191523,0.00012,2]
[323556077,1714084276455,-155.04223178,0.00012,2]
[323556078,1714084276464,-19518.60027249,0.00012,2]
[323556079,1714084276473,-11413.58358067,0.00012,2]
[323556080,1714084276482,-139.71216454,0.00012,2]
[323556081,1714084276516,-610.0,0.00011795,2]
[323556082,1714084276525,-24.20000001,0.00012,2]
[323556083,1714084276552,-436.33943545,0.00012,2]
[323556084,1714084276562,-500.4743272,0.00012,2]
[323556085,1714084276571,-500.0,0.00012,2]
[323556086,1714084276580,-504.55623735,0.00012,2]
[323556087,1714084276591,-392.30596212,0.00012,2]
[323556088,1714084276602,-6713.32558,0.00012,2]
[323556089,1714084277444,-164.65,0.00010499,2]
[323556090,1714084277457,-336.39806704,0.00010957,2]
[323556091,1714084277468,-500.0,0.00010958,2]
[323556092,1714084277479,-500.0,0.00010958,2]
[323556093,1714084277489,-500.0,0.00010958,2]
[323556094,1714084277498,-500.0,0.00010958,2]
[323556095,1714084277507,-500.0,0.00010958,2]
[323556096,1714084277518,-500.0,0.00011232,2]
[323556097,1714084277528,-500.0,0.00011232,2]
[323556098,1714084277538,-500.0,0.00011232,2]
[323556099,1714084277548,-500.0,0.00011506,2]
[323556100,1714084277558,-427.99633375,0.00011506,2]
[323556101,1714084277568,-500.0,0.00011506,2]
[323556102,1714084277577,-199.99843923,0.0001168,2]
[323556103,1714084277586,-500.0,0.0001178,2]
[323556104,1714084277596,-500.0,0.0001178,2]
[323556105,1714084277606,-358.549,0.00011795,2]
[323556106,1714084277617,-42691.49784451,0.00012,2]
[323556107,1714084288546,-150.14009284,0.00010754,2]
[323556108,1714084289997,-150.0,0.00010645,2]
[323556109,1714084461291,832.53,8.246e-05,2]
[323556110,1714084472704,263.652278,0.00025,120]
[323556111,1714084931130,790.9,8.219e-05,2]
[323556112,1714085141233,156.28,8.219e-05,2]
[323556117,1714085418640,798.11,8.219e-05,2]
[323556131,1714085431496,-155.0,9.554e-05,2]
[323556132,1714085431506,-809.84,9.555e-05,2]
[323556133,1714085431517,-967.84164303,9.556e-05,2]
[323556134,1714085431525,-250.0,9.563e-05,2]
[323556135,1714085431535,-190.22,9.578e-05,2]
[323556136,1714085431545,-1428.61,9.63e-05,2]
[323556137,1714085431554,-150.0,9.633e-05,2]
[323556138,1714085431563,-2348.00595327,9.634e-05,2]
[323556139,1714085431575,-13309.34404673,9.634e-05,2]
[323556140,1714085431584,-150.0,9.699e-05,2]
[323556141,1714085431594,-800.0,9.729e-05,2]
[323556142,1714085431603,-150.99,9.729e-05,2]
[323556143,1714085431613,-499.99,9.729e-05,2]
[323556144,1714085431622,-171.86,9.788e-05,2]
[323556145,1714085431632,-3158.69872708,0.00010213,2]
[323556146,1714085431641,-662.34,0.00010213,2]
[323556147,1714085431650,-798.11,0.00010453,2]
[323556148,1714085431660,-7890.34111885,0.00010461,2]
[323556149,1714085431669,-773.39,0.00010505,2]
[323556150,1714085431678,-2500.0,0.00010552,2]
[323556151,1714085431687,-176.23272478,0.00010553,2]
[323556152,1714085431697,-1000.0,0.00010555,2]
[323556153,1714085431706,-7083.84051883,0.00010556,2]
[323556154,1714085431715,-181.0,0.00010596,2]
[323556155,1714085431725,-500.0,0.000106,3]
[323556156,1714085431734,-4583.44785109,0.0001064,2]
[323556157,1714085431744,-582.70487158,0.00010645,2]
[323556158,1714085431754,-325.58773117,0.0001065,2]
[323556159,1714085431762,-532.55824777,0.0001065,2]
[323556160,1714085431772,-16072.61050272,0.00010651,2]
[323556162,1714085431783,-385.01912969,0.00010651,2]
[323556169,1714085431815,-614.7279758,0.00010651,2]
[323556170,1714085431992,-127.6796144,0.00010651,2]
[323556171,1714085432001,-300.4219286,0.00010652,2]
[323556172,1714085432012,-95606.78900698,0.00010652,2]
[323556173,1714085432024,-658.25,0.00010652,2]
[323556174,1714085432051,-4321.14263448,0.00010652,2]
[323556175,1714085432063,-59020.97527109,0.00010652,2]
[323556176,1714085432074,-300.0,0.00010652,2]
[323556177,1714085432085,-462.3687692,0.00010652,2]
[323556178,1714085432104,-52366.10599794,0.00010652,2]
[323556179,1714085432115,-334899.93444086,0.00010652,2]
[323556180,1714085432126,-29869.99972196,0.00010652,2]
[323556181,1714085432163,-460.43123519,0.00010652,2]
[323556184,1714085437648,-6446.8404,9.555e-05,2]
[323556185,1714085437661,-6937.88210294,9.555e-05,2]
[323556186,1714085437757,-6060.06996373,9.555e-05,2]
[323556187,1714085437767,-19179.75467627,0.00010652,2]
[323556188,1714085437778,-40188.70718728,0.00010652,2]
[323556189,1714085437794,-48416.54201713,0.00010652,2]
[323556190,1714085437803,-2468.9522,0.00010653,2]
[323556191,1714085437812,-1000.0,0.00010653,2]
[323556192,1714085437822,-62703.0683,0.00010653,2]
[323556193,1714085437831,-245000.0,0.00010653,2]
[323556194,1714085437841,-168.52611107,0.00010656,2]
[323556195,1714085437850,-150.00799356,0.00010656,2]
[323556197,1714085437859,-1000.0,0.000107,3]
[323556199,1714085437868,-176.23272476,0.00010706,2]
[323556201,1714085437878,-762.0935144,0.00010751,2]
[323556203,1714085437887,-307.80513931,0.00010751,2]
[323556206,1714085437896,-282.15298493,0.00010751,2]
[323556208,1714085437907,-262.16181551,0.00010751,2]
[323556211,1714085437917,-3675.36120902,0.00010752,2]
[323556213,1714085437926,-308.20153492,0.00010753,2]
[323556215,1714085437935,-155.0,0.00010753,2]
[323556217,1714085437945,-1295.35237242,0.00010753,2]
[323556219,1714085437955,-242.38602639,0.00010753,2]
[323556221,1714085437966,-155.5831373,0.00010753,2]
[323556223,1714085437974,-3413.36288726,0.00010753,2]
[323556225,1714085437983,-273.43631284,0.00010753,2]
[323556226,1714085437992,-615.83988606,0.00010753,2]
[323556227,1714085438002,-373.08888699,0.00010753,2]
[323556228,1714085438011,-40.14871628,0.00010754,2]
[323556229,1714085438021,-4585.9986,0.00010754,2]
[323556230,1714085438030,-159.56743062,0.00010754,2]
[323556231,1714085438039,-546239.17208408,0.00010754,2]
[323556232,1714085438051,-24510.1339,0.00010756,2]
[323556233,1714085438060,-40044.6051,0.00010756,2]
[323556234,1714085438069,-99522.415,0.00010756,2]
[323556235,1714085438079,-7083.8405188,0.00010769,2]
[323556236,1714085438088,-1500.0,0.000108,3]
[323556237,1714085438098,-176.23272476,0.00010858,2]
[323556238,1714085438107,-1000.0,0.00010858,2]
[323556239,1714085438116,-10000.0,0.00010858,2]
[323556240,1714085438125,-2000.0,0.000109,3]
[323556241,1714085438134,-800.0,0.00010945,2]
[323556242,1714085438143,-516.52041606,0.00010956,2]
[323556243,1714085438155,-500.0,0.00010958,2]
[323556244,1714085438164,-500.0,0.00010958,2]
[323556245,1714085438173,-500.0,0.00010958,2]
[323556246,1714085438182,-500.0,0.00010958,2]
[323556247,1714085438191,-500.0,0.00010958,2]
[323556248,1714085438200,-500.0,0.00010958,2]
[323556249,1714085438210,-500.0,0.00010958,2]
[323556250,1714085438219,-500.0,0.00010958,2]
[323556251,1714085438230,-500.0,0.00010958,2]
[323556252,1714085438239,-500.0,0.00010958,2]
[323556253,1714085438248,-1151.48,0.00010958,2]
[323556254,1714085438258,-500.0,0.00010958,2]
[323556255,1714085438269,-500.0,0.00010958,2]
[323556256,1714085438278,-914.74,0.00010958,2]
[323556257,1714085438287,-500.0,0.00010958,2]
[323556258,1714085438297,-500.0,0.00010958,2]
[323556259,1714085438306,-500.0,0.00010958,2]
[323556260,1714085438315,-202.4166437,0.00010958,2]
[323556261,1714085438325,-500.0,0.00010958,2]
[323556262,1714085438334,-500.0,0.00010958,2]
[323556263,1714085438344,-387.51381134,0.00010958,2]
[323556264,1714085438354,-500.0,0.00010958,2]
[323556265,1714085438365,-500.0,0.00010958,2]
[323556266,1714085438374,-500.0,0.00010958,2]
[323556267,1714085438384,-500.0,0.00010958,2]
[323556268,1714085438392,-500.0,0.00010958,2]
[323556269,1714085438402,-500.0,0.00010958,2]
[323556270,1714085438412,-500.0,0.00010958,2]
[323556271,1714085438421,-500.0,0.00010958,2]
[323556272,1714085438430,-500.0,0.00010958,2]
[323556273,1714085438439,-500.0,0.00010958,2]
[323556274,1714085438448,-1226.69,0.00010958,2]
[323556275,1714085438457,-500.0,0.00010958,2]
[323556276,1714085438466,-500.0,0.00010958,2]
[323556277,1714085438475,-500.0,0.00010958,2]
[323556278,1714085438484,-500.0,0.00010958,2]
[323556279,1714085438493,-500.0,0.00010958,2]
[323556280,1714085438503,-500.0,0.00010958,2]
[323556281,1714085438512,-500.0,0.00010958,2]
[323556282,1714085438521,-500.0,0.00010958,2]
[323556283,1714085438531,-500.0,0.00010958,2]
[323556284,1714085438540,-500.0,0.00010958,2]
[323556285,1714085438549,-500.0,0.00010958,2]
[323556286,1714085438558,-500.0,0.00010958,2]
[323556287,1714085438567,-500.0,0.00010958,2]
[323556288,1714085438577,-500.0,0.00010958,2]
[323556289,1714085438586,-500.0,0.00010958,2]
[323556290,1714085438595,-500.0,0.00010958,2]
[323556291,1714085438604,-500.0,0.00010958,2]
[323556292,1714085438614,-500.0,0.00010958,2]
[323556293,1714085438623,-500.0,0.00010958,2]
[323556294,1714085438632,-500.0,0.00010958,2]
[323556295,1714085438641,-500.0,0.00010958,2]
[323556296,1714085438652,-500.0,0.00010958,2]
[323556297,1714085438663,-500.0,0.00010958,2]
[323556298,1714085438672,-500.0,0.00010958,2]
[323556299,1714085438681,-500.0,0.00010958,2]
[323556300,1714085438690,-500.0,0.00010958,2]
[323556301,1714085438699,-500.0,0.00010958,2]
[323556302,1714085438709,-506.83998659,0.00010958,2]
[323556303,1714085438718,-500.0,0.00010958,2]
[323556304,1714085438728,-500.0,0.00010958,2]
[323556305,1714085438737,-500.0,0.00010958,2]
[323556306,1714085438746,-500.0,0.00010958,2]
[323556307,1714085438756,-500.0,0.00010958,2]
[323556308,1714085438765,-500.0,0.00010958,2]
[323556309,1714085438774,-500.0,0.00010958,2]
[323556310,1714085438783,-500.0,0.00010958,2]
[323556311,1714085438792,-500.0,0.00010958,2]
[323556312,1714085438801,-500.0,0.00010958,2]
[323556313,1714085438810,-500.0,0.00010958,2]
[323556314,1714085438819,-500.0,0.00010958,2]
[323556315,1714085438829,-500.0,0.00010958,2]
[323556316,1714085438838,-500.0,0.00010958,2]
[323556317,1714085438847,-500.0,0.00010958,2]
[323556318,1714085438856,-500.0,0.00010958,2]
[323556319,1714085438866,-500.0,0.00010958,2]
[323556320,1714085438875,-500.0,0.00010958,2]
[323556321,1714085438884,-500.0,0.00010958,2]
[323556322,1714085438894,-500.0,0.00010958,2]
[323556323,1714085438904,-500.0,0.00010958,2]
[323556324,1714085438913,-500.0,0.00010958,2]
[323556325,1714085438922,-1183.02,0.00010958,2]
[323556326,1714085438932,-500.0,0.00010958,2]
[323556327,1714085438942,-500.0,0.00010958,2]
[323556328,1714085438954,-500.0,0.00010958,2]
[323556329,1714085438964,-500.0,0.00010958,2]
[323556330,1714085438974,-500.0,0.00010958,2]
[323556331,1714085438983,-500.0,0.00010958,2]
[323556332,1714085438994,-169.79832263,0.00010958,2]
[323556333,1714085439005,-500.0,0.00010958,2]
[323556334,1714085439015,-500.0,0.00010958,2]
[323556335,1714085439024,-500.0,0.00010958,2]
[323556336,1714085439035,-500.0,0.00010958,2]
[323556337,1714085439045,-500.0,0.00010958,2]
[323556338,1714085439055,-500.0,0.00010958,2]
[323556339,1714085439065,-500.0,0.00010958,2]
[323556340,1714085439075,-984.29,0.00010958,2]
[323556341,1714085439085,-500.0,0.00010958,2]
[323556342,1714085439094,-500.0,0.00010958,2]
[323556343,1714085439104,-500.0,0.00010958,2]
[323556344,1714085439114,-500.0,0.00010958,2]
[323556345,1714085439124,-500.0,0.00010958,2]
[323556346,1714085439134,-500.0,0.00010958,2]
[323556347,1714085439144,-500.0,0.00010958,2]
[323556348,1714085439153,-500.0,0.00010958,2]
[323556349,1714085439164,-500.0,0.00010958,2]
[323556350,1714085439173,-500.0,0.00010958,2]
[323556351,1714085439182,-500.0,0.00010958,2]
[323556352,1714085439192,-500.0,0.00010958,2]
[323556353,1714085439202,-500.0,0.00010958,2]
[323556354,1714085439211,-500.0,0.00010958,2]
[323556355,1714085439221,-500.0,0.00010958,2]
[323556356,1714085439230,-500.0,0.00010958,2]
[323556357,1714085439239,-500.0,0.00010958,2]
[323556358,1714085439249,-500.0,0.00010958,2]
[323556359,1714085439258,-500.0,0.00010958,2]
[323556360,1714085439267,-1955.82,0.00010958,2]
[323556361,1714085439277,-500.0,0.00010958,2]
[323556362,1714085439288,-500.0,0.00010958,2]
[323556363,1714085439297,-500.0,0.00010958,2]
[323556364,1714085439307,-500.0,0.00010958,2]
[323556365,1714085439316,-500.0,0.00010958,2]
[323556366,1714085439326,-500.0,0.00010958,2]
[323556367,1714085439335,-500.0,0.00010958,2]
[323556368,1714085439344,-500.0,0.00010958,2]
[323556369,1714085439354,-500.0,0.00010958,2]
[323556370,1714085439365,-695.46,0.00010958,2]
[323556371,1714085439375,-500.0,0.00010958,2]
[323556372,1714085439385,-500.0,0.00010958,2]
[323556373,1714085439544,-500.0,0.00010958,2]
[323556374,1714085439553,-500.0,0.00010958,2]
[323556375,1714085439563,-500.0,0.00010958,2]
[323556376,1714085439572,-500.0,0.00010958,2]
[323556377,1714085439582,-500.0,0.00010958,2]
[323556378,1714085439591,-500.0,0.00010958,2]
[323556379,1714085439600,-500.0,0.00010958,2]
[323556380,1714085439609,-500.0,0.00010958,2]
[323556381,1714085439619,-500.0,0.00010958,2]
[323556382,1714085439628,-500.0,0.00010958,2]
[323556383,1714085439637,-500.0,0.00010958,2]
[323556384,1714085439646,-500.0,0.00010958,2]
[323556385,1714085439656,-500.0,0.00010958,2]
[323556386,1714085439666,-500.0,0.00010958,2]
[323556387,1714085439675,-786.11,0.00010958,2]
[323556388,1714085439685,-500.0,0.00010958,2]
[323556389,1714085439694,-500.0,0.00010958,2]
[323556390,1714085439703,-500.0,0.00010958,2]
[323556391,1714085439713,-319.31571086,0.00010958,2]
[323556392,1714085439722,-500.0,0.00010958,2]
[323556393,1714085439731,-500.0,0.00010958,2]
[323556394,1714085439741,-500.0,0.00010958,2]
[323556395,1714085439751,-500.0,0.00010958,2]
[323556396,1714085439762,-500.0,0.00010958,2]
[323556397,1714085439771,-500.0,0.00010958,2]
[323556398,1714085439780,-557.01877608,0.00010958,2]
[323556399,1714085439790,-500.0,0.00010958,2]
[323556400,1714085439800,-500.0,0.00010958,2]
[323556401,1714085439810,-500.0,0.00010958,2]
[323556402,1714085439820,-1050.38,0.00010958,2]
[323556403,1714085439831,-500.0,0.00010958,2]
[323556404,1714085439841,-500.0,0.00010958,2]
[323556405,1714085439850,-500.0,0.00010958,2]
[323556406,1714085439860,-638.07,0.00010958,2]
[323556407,1714085439869,-500.0,0.00010958,2]
[323556408,1714085439879,-500.0,0.00010958,2]
[323556409,1714085439888,-500.0,0.00010958,2]
[323556410,1714085439898,-249.7320373,0.00010958,2]
[323556411,1714085439908,-500.0,0.00010958,2]
[323556412,1714085439917,-500.0,0.00010958,2]
[323556413,1714085439928,-500.0,0.00010958,2]
[323556414,1714085439939,-502.36542532,0.00010958,2]
[323556415,1714085439949,-500.0,0.00010958,2]
[323556416,1714085439961,-500.0,0.00010958,2]
[323556417,1714085439970,-500.0,0.00010958,2]
[323556418,1714085439980,-500.0,0.00010958,2]
[323556419,1714085439991,-500.0,0.00010958,2]
[323556420,1714085440002,-500.0,0.00010958,2]
[323556421,1714085440011,-358.14344146,0.00010958,2]
[323556422,1714085440020,-500.0,0.00010958,2]
[323556423,1714085440030,-1452.34,0.00010958,2]
[323556424,1714085440041,-1053.96,0.00010958,2]
[323556425,1714085440051,-500.0,0.00010958,2]
[323556426,1714085440060,-500.0,0.00010958,2]
[323556427,1714085440069,-500.0,0.00010958,2]
[323556428,1714085440079,-792.07,0.00010958,2]
[323556429,1714085440088,-500.0,0.00010958,2]
[323556430,1714085440097,-500.0,0.00010958,2]
[323556431,1714085440106,-500.0,0.00010958,2]
[323556432,1714085440117,-500.0,0.00010958,2]
[323556433,1714085440126,-500.0,0.00010958,2]
[323556434,1714085440135,-500.0,0.00010958,2]
[323556435,1714085440144,-1278.58,0.00010958,2]
[323556436,1714085440153,-423.02352519,0.00010958,2]
[323556437,1714085440164,-500.0,0.00010958,2]
[323556438,1714085440173,-500.0,0.00010958,2]
[323556439,1714085440182,-500.0,0.00010958,2]
[323556440,1714085440192,-500.0,0.00010958,2]
[323556441,1714085440201,-500.0,0.00010958,2]
[323556442,1714085440210,-500.0,0.00010958,2]
[323556443,1714085440219,-500.0,0.00010958,2]
[323556444,1714085440227,-500.0,0.00010958,2]
[323556445,1714085440237,-500.0,0.00010958,2]
[323556446,1714085440247,-500.0,0.00010958,2]
[323556447,1714085440258,-1258.46,0.00010958,2]